[Event "37th ECCC 2022"]
[Site "Mayrhofen"]
[Date "2022.10.04"]
[Round "2.3"]
[White "Gukesh D"]
[Black "Varga, Zoltan"]
[Result "1-0"]
[ECO "B01"]
[WhiteElo "2732"]
[BlackElo "2401"]
[Annotator "TA"]
[PlyCount "59"]
[EventDate "2022.10.03"]
[EventType "team-tourn"]
[EventCountry "AUT"]
[SourceTitle "playchess.com"]
[Source "ChessBase"]
[SourceQuality "1"]
[TimeControl "40/5400+30:1800+30"]

{[%evp 16,59,78,75,90,33,37,36,33,25,25,18,19,26,20,20,24,21,27,33,27,39,21,0,0,0,26,18,44,59,183,161,337,346,346,328,327,333,485,504,913,901,1007,396,310,289]} 1. e4 {[%emt 0:01:12]} d5 {[%emt 0:03:01]} 2. exd5 {[%emt 0:01:25]} Qxd5 {[%emt 0:00:05]} 3. Nc3 {[%emt 0:00:28]} Qa5 {[%emt 0:02:17]} 4. d4 {[%emt 0:01:25]} Nf6 {[%emt 0:00:05]} 5. Nf3 {[%emt 0:01:11]} Bf5 {[%emt 0:01:06]} 6. Ne5 {[%emt 0:01:07]} c6 {[%emt 0:01:44]} 7. Bc4 {[%emt 0:01:46]} e6 {[%emt 0:01:43]} 8. g4 {[%emt 0:00:14]} Be4 {[%emt 0:01:24]} 9. O-O {[%emt 0:03:59]} Bd5 {[%emt 0:02:03] B01: Scandinavian Defence.} 10. Nxd5 {[%emt 0:04:01]} (10. Qe2 $16) 10... cxd5 $14 {[%emt 0:03:11]} 11. Bd3 {[%emt 0:01:23]} Nc6 {[%emt 0:02:07] White is slightly better.} 12. c3 {[%emt 0:02:22]} (12. Bf4 {feels hotter.} Nxd4 13. g5 Nd7 14. Nxd7 Kxd7 15. Qg4) 12... Nxe5 {[%emt 0:09:33]} 13. dxe5 {[%emt 0:00:07]} Nd7 {[%emt 0:00:02]} 14. Qe2 {[%emt 0:01:21]} (14. f4 {is interesting.} O-O-O 15. a4 Kb8 16. Kh1) 14... Qc7 {[%emt 0:06:37]} 15. f4 {[%emt 0:00:47] [#]} g6 $146 {[%emt 0:01:42]} ({Predecessor:} 15... a6 16. a4 g6 17. Bd2 h5 18. f5 gxf5 19. gxf5 O-O-O 20. Kh1 {½-½ (20) Fries Nielsen,J-Fries Nielsen,N Denmark 1993}) 16. Kh1 {[%emt 0:25:21]} h5 {[%emt 0:08:18]} 17. f5 {[%emt 0:01:08]} O-O-O $1 {[%emt 0:17:12]} 18. fxe6 {[%emt 0:03:05]} fxe6 {[%emt 0:00:03]} 19. Rf7 {[%emt 0:08:58]} hxg4 {[%emt 0:02:17] Hoping for ...g3.} 20. Bf4 {[%emt 0:01:57]} (20. Bxg6 $2 g3 21. Rh7 Rxh7 22. Bxh7 Be7 $19) 20... Bh6 {[%emt 0:14:37] And now ...Bxf4 would win.} 21. Bg3 $36 {[%emt 0:01:22][%mdl 2048] White is more active.} (21. Qxg4 Bxf4 22. Qxf4 Qb6 $17) 21... Rdf8 {[%emt 0:00:16]} 22. Raf1 {[%emt 0:01:59] Bb5 is the strong threat.} Rxf7 {[%emt 0:00:10] A mistake that costs the game.} (22... Qb6 $14) 23. Rxf7 $18 {[%emt 0:00:07] Threatens to win with Bb5.} Rf8 $2 {[%emt 0:00:25] [#]} (23... a6) 24. Rh7 $1 {[%emt 0:08:18]} (24. Bxg6 Qc6 $14) 24... Bc1 {[%emt 0:01:53]} (24... Bf4 $2 25. Bxf4 (25. Qxg4 Qxe5 26. Qxg6 Bxg3 $15) (25. Bb5 Bxg3 26. Bxd7+ Kb8 $16) 25... Rxf4 26. Bb5) 25. Bb5 {[%emt 0:04:01]} ({And not} 25. Bxg6 Qb6 $11) (25. Qxg4 Qc6 26. Qe2 (26. Bxg6 $2 Rg8 $19) (26. Qxg6 Bxb2 27. Kg2 Bxc3 $17) 26... a6 $11) 25... Rd8 {[%emt 0:00:09] [#]} 26. Qc2 $1 {[%emt 0:01:49]} ({Not} 26. Qxg4 Qb6 27. a4 Qe3 $14) 26... Be3 {[%emt 0:01:08]} (26... Qc5 {was called for.}) 27. Qxg6 {[%emt 0:01:02]} Qb6 {[%emt 0:00:10]} (27... Kb8 $142 28. Bh4 Qb6 29. Rxd7 Rc8) 28. Bxd7+ {[%emt 0:01:23]} Rxd7 {[%emt 0:00:08]} 29. Rxd7 $2 {[%emt 0:00:04]} ({Don't go for} 29. Qe8+ $2 Rd8 30. Qa4 Qxb2 $19) (29. Bh4 {White threatens Qe8+ and mate.} d4 30. Qe8+ Rd8 31. Bxd8 Qc6+ 32. Qxc6+ bxc6 33. Rh8) 29... Kxd7 {[%emt 0:04:51]} 30. Qf7+ {[%emt 0:00:35] Weighted Error Value: White=0.22 (precise) /Black=0.41} 1-0

[Event "37th ECCC 2022"]
[Site "Mayrhofen"]
[Date "2022.10.04"]
[Round "2.4"]
[White "Bagi, Mate"]
[Black "Nisipeanu, Liviu-Dieter"]
[Result "1/2-1/2"]
[ECO "C15"]
[WhiteElo "2460"]
[BlackElo "2615"]
[Annotator "TA"]
[PlyCount "165"]
[EventDate "2022.10.03"]
[EventType "team-tourn"]
[EventCountry "AUT"]
[SourceTitle "playchess.com"]
[Source "ChessBase"]
[SourceQuality "1"]
[TimeControl "40/5400+30:1800+30"]

{[%evp 17,165,31,17,0,0,12,9,7,32,34,33,0,-7,-22,-25,-36,-25,-29,-21,-21,-18,-25,-14,-18,-15,-27,-24,-29,-26,-31,-26,-31,-35,-51,-51,-51,-51,-54,-16,-71,-70,-70,-70,-70,-63,-60,-32,-27,-26,-24,0,0,0,-11,0,-43,-8,-9,-8,-8,-8,-12,0,-8,-4,-5,0,-8,0,-6,0,-17,0,0,0,-34,-34,-34,-34,-34,-34,-91,-92,-129,-129,-129,-92,-116,-34,-34,-34,-127,-34,-41,-19,-34,-34,-34,-23,-74,-74,-93,-101,-134,-115,-87,0,0,0,0,0,0,0,0,0,0,0,0,0,0,0,0,0,0,0,0,0,0,0,0,0,0,0,0,0,0,0,0,0,0,0,0,0,0,0,0,0,0,0,0]} 1. e4 {[%emt 0:00:06]} e6 {[%emt 0:00:07]} 2. d4 {[%emt 0:00:34]} d5 {[%emt 0:00:06]} 3. Nc3 {[%emt 0:01:04]} Bb4 {[%emt 0:00:07]} 4. exd5 {[%emt 0:06:03]} exd5 {[%emt 0:00:06]} 5. Bd3 {[%emt 0:00:11]} Nc6 {[%emt 0:00:22]} 6. a3 {[%emt 0:04:15]} Bxc3+ {[%emt 0:00:09]} 7. bxc3 {[%emt 0:00:05]} Nge7 {[%emt 0:00:05]} 8. Qf3 {[%emt 0:03:46]} Be6 {[%emt 0:02:11]} 9. Ne2 {[%emt 0:03:20] 9.Rb1 is not played anymore.} Qd7 {[%emt 0:01:41]} 10. h3 {[%emt 0:08:58] C01: French: Exchange Variation.} Bf5 {[%emt 0:12:32]} 11. O-O {[%emt 0:03:47]} Bxd3 {[%emt 0:06:15]} 12. cxd3 {[%emt 0:00:29]} Qf5 {[%emt 0:02:22]} 13. Qxf5 {[%emt 0:08:09]} Nxf5 {[%emt 0:00:07]} 14. Bf4 {[%emt 0:01:39]} O-O-O {[%emt 0:00:59]} 15. Ng3 {[%emt 0:01:21] [#]} Nxg3 $146 {[%emt 0:00:16]} ({Predecessor:} 15... Nfe7 16. Rfe1 h5 17. Re2 Rde8 18. Rae1 Kd7 19. Nf1 Reg8 20. Nd2 g5 21. Bh2 g4 22. hxg4 hxg4 {0-1 (49) Jacek,M (2148)-Domlatil,J (2134) Czech Republic 2009}) 16. Bxg3 {[%emt 0:00:06]} Rhe8 {[%emt 0:00:27]} 17. Rfe1 {[%emt 0:00:42]} Rxe1+ {[%emt 0:09:15]} 18. Rxe1 $11 {[%emt 0:00:07][%mdl 4096] Endgame KRB-KRN} Kd7 {[%emt 0:09:06]} 19. Bf4 {[%emt 0:06:13]} b5 {[%emt 0:01:20]} 20. Kf1 {[%emt 0:03:17]} Rb8 {[%emt 0:10:26]} 21. Rb1 {[%emt 0:02:56]} a5 {[%emt 0:02:41]} 22. Ke1 {[%emt 0:07:25]} b4 {[%emt 0:08:03]} 23. axb4 {[%emt 0:01:21]} axb4 {[%emt 0:00:04]} 24. Kd1 {[%emt 0:10:02]} Ra8 {[%emt 0:06:39]} 25. Be3 {[%emt 0:04:14]} Ra3 {[%emt 0:05:44]} 26. cxb4 {[%emt 0:00:33] [#]} Nxd4 $1 {[%emt 0:00:10]} 27. Kd2 {[%emt 0:02:45]} Ra2+ {[%emt 0:01:32]} (27... Ne6 $5 {[%cal Rd5d4]} 28. Kc2 Kd6 $15) 28. Ke1 {[%emt 0:02:55]} (28. Kc3 $11 {remains equal.} Nb5+ 29. Kb3 Ra3+ 30. Kc2) 28... Ne6 $17 {[%emt 0:05:31]} 29. h4 {[%emt 0:09:57]} h5 {[%emt 0:01:43]} 30. g3 {[%emt 0:00:58]} g6 {[%emt 0:04:11]} 31. b5 {[%emt 0:01:10]} Ra8 {[%emt 0:06:58]} (31... d4 $5 {[%cal Rd4e3]} 32. Bf4 Nc5 $17) 32. Rb4 {[%emt 0:00:41]} Kd6 {[%emt 0:00:17]} 33. Kd2 {[%emt 0:03:48]} Ra2+ {[%emt 0:00:30]} 34. Kc3 {[%emt 0:00:12]} Ke5 {[%emt 0:00:51]} 35. Kb3 {[%emt 0:02:51] Inhibits Ra3+.} Ra1 {[%emt 0:01:21]} 36. Bf4+ {[%emt 0:00:51]} Kf5 {[%emt 0:01:02]} 37. Kb2 {[%emt 0:00:44] Prevents Rb1+.} Ra8 {[%emt 0:02:04]} 38. Be3 {[%emt 0:00:18] Prevents d4.} Ke5 {[%emt 0:00:11]} 39. Bf4+ {[%emt 0:01:03]} Kf5 {[%emt 0:00:25]} 40. Be3 {[%emt 0:00:22] Against d4} Rb8 {[%emt 0:01:46][%cal Od5d4]} 41. Kc3 {[%emt 0:05:36] Prevents d4+.} Ra8 {[%emt 0:03:49]} 42. Kb2 {[%emt 0:02:23]} Rd8 {[%emt 0:08:01] Threatening ...d4.} 43. Kc3 {[%emt 0:02:54] Against d4+} Ke5 {[%emt 0:00:13] [#] ...d4+ is the strong threat.} 44. Bd2 {[%emt 0:10:26]} d4+ {[%emt 0:05:04]} 45. Kc4 {[%emt 0:01:10]} Ra8 {[%emt 0:00:32] Inhibits Ra4.} 46. b6 {[%emt 0:01:38]} cxb6 {[%emt 0:01:14] And now ...Rc8+ would win.} 47. Rb5+ {[%emt 0:00:38]} Kf6 {[%emt 0:01:01]} 48. Rxb6 {[%emt 0:02:34]} Ra2 {[%emt 0:01:14]} 49. Bf4 {[%emt 0:02:56]} (49. Bb4 $15) 49... Rxf2 {[%emt 0:01:52]} 50. Kd5 {[%emt 0:00:10]} Kf5 {[%emt 0:02:24]} 51. Be5 {[%emt 0:00:16]} Ra2 {[%emt 0:01:08]} 52. Rb5 {[%emt 0:00:50] Inhibits Ra5.} g5 {[%emt 0:04:40]} (52... Re2 $17 53. Bb8 Kg4) 53. hxg5 $15 {[%emt 0:00:41]} Kxg5 {[%emt 0:00:08]} 54. Kd6 {[%emt 0:01:00]} (54. Bd6 $15) 54... Kg6 {[%emt 0:01:28]} ({Better is} 54... Kg4 $17 55. Kd5 Rf2) 55. Kd5 {[%emt 0:00:27]} Re2 {[%emt 0:02:11]} 56. Bb8 {[%emt 0:01:40]} Re3 {[%emt 0:01:34]} 57. Kc4 {[%emt 0:00:26]} Rf3 {[%emt 0:00:28]} 58. Bd6 {[%emt 0:00:55]} (58. Rb1 $11 {keeps the balance.}) 58... Ng7 $17 {[%emt 0:00:48]} 59. Rb6 {[%emt 0:02:02]} Nf5 {[%emt 0:00:52]} 60. Be5+ {[%emt 0:01:19]} Kg5 {[%emt 0:00:17]} 61. Rb8 {[%emt 0:01:03]} Kg4 {[%emt 0:01:42]} (61... Nxg3 $17 {White must now prevent ...Ne2.} 62. Rg8+ Kh4 63. Bxd4 Rf4) 62. Rg8+ $11 {[%emt 0:00:14] The position is equal.} Kh3 {[%emt 0:00:06][%cal Rf5g3]} 63. Rh8 {[%emt 0:00:13]} Nxg3 {[%emt 0:00:25]} 64. Bxg3 {[%emt 0:00:32]} Kxg3 {[%emt 0:00:08]} (64... Rxg3 65. Rxh5+ Kg4 66. Rh7) 65. Rxh5 {[%emt 0:00:04] KR-KR} Rf4 {[%emt 0:00:13]} 66. Rd5 {[%emt 0:00:57]} f6 {[%emt 0:01:18]} 67. Rd6 {[%emt 0:00:42]} f5 {[%emt 0:00:16]} 68. Rd5 {[%emt 0:00:14]} Kg4 {[%emt 0:00:57]} 69. Re5 {[%emt 0:00:22]} Kg5 {[%emt 0:00:24]} 70. Kd5 {[%emt 0:00:18]} Rh4 {[%emt 0:00:16]} 71. Re8 {[%emt 0:00:43]} Kg4 {[%emt 0:00:43]} 72. Kxd4 {[%emt 0:00:16]} Kg3+ {[%emt 0:00:06]} 73. Ke5 {[%emt 0:00:34]} f4 {[%emt 0:00:03]} 74. Rg8+ {[%emt 0:00:28]} Rg4 {[%emt 0:00:05]} 75. Rf8 {[%emt 0:00:18]} f3 {[%emt 0:00:17]} 76. d4 {[%emt 0:00:14]} f2 {[%emt 0:00:29]} 77. d5 {[%emt 0:00:17]} Rg5+ {[%emt 0:00:26]} 78. Ke6 {[%emt 0:00:20]} Kg2 {[%emt 0:00:09]} 79. d6 {[%emt 0:00:16] Hoping for d7.} Rg6+ {[%emt 0:00:05]} 80. Ke7 {[%emt 0:00:14]} Rxd6 {[%emt 0:00:05]} 81. Kxd6 {[%emt 0:00:05]} f1=Q {[%emt 0:00:04]} 82. Rxf1 {[%emt 0:00:04]} Kxf1 {[%emt 0:00:03]} 83. Kd5 {Weighted Error Value: White=0.14 (very precise) /Black=0.12 (very precise)} 1/2-1/2

[Event "37th ECCC 2022"]
[Site "Mayrhofen"]
[Date "2022.10.04"]
[Round "2.5"]
[White "Sargissian, Gabriel"]
[Black "Borhy, Marcell"]
[Result "1/2-1/2"]
[ECO "E21"]
[WhiteElo "2711"]
[BlackElo "2400"]
[Annotator "TA"]
[PlyCount "57"]
[EventDate "2022.10.03"]
[EventType "team-tourn"]
[EventCountry "AUT"]
[SourceTitle "playchess.com"]
[Source "ChessBase"]
[SourceQuality "1"]
[TimeControl "40/5400+30:1800+30"]

{[%evp 11,57,27,23,22,17,3,8,21,8,20,33,16,18,6,36,29,35,26,34,28,30,26,69,34,58,63,63,53,56,45,41,35,40,53,47,18,25,0,0,6,44,0,0,0,39,0,0,0]} 1. d4 {[%emt 0:00:06]} Nf6 {[%emt 0:00:13]} 2. c4 {[%emt 0:00:08]} e6 {[%emt 0:00:06]} 3. Nc3 {[%emt 0:00:48]} Bb4 {[%emt 0:00:16]} 4. Nf3 {[%emt 0:00:34]} d5 {[%emt 0:01:49]} 5. Qa4+ {[%emt 0:02:22]} Nc6 {[%emt 0:00:54]} 6. e3 {[%emt 0:03:23]} O-O {[%emt 0:00:14]} 7. Qc2 {[%emt 0:00:48] D38: Queen's Gambit Declined: Ragozin Defence (4 Nf3 Bb4).} Re8 {[%emt 0:01:03]} 8. Bd2 {[%emt 0:01:17]} Bf8 {[%emt 0:06:57]} 9. Be2 {[%emt 0:00:49]} dxc4 {[%emt 0:09:13]} 10. Bxc4 {[%emt 0:01:19]} a6 {[%emt 0:00:12]} 11. a3 {[%emt 0:08:37]} h6 {[%emt 0:08:28]} 12. Rd1 {[%emt 0:10:50]} b5 {[%emt 0:06:09]} 13. Bd3 {[%emt 0:13:06][%cal Oc3b5]} Bb7 {[%emt 0:03:59]} 14. Ne4 {[%emt 0:01:42]} Nd7 {[%emt 0:11:39]} 15. Ng3 {[%emt 0:12:50]} Ne7 {[%emt 0:08:36]} 16. b4 {[%emt 0:07:43]} f5 {[%emt 0:03:31] [#]} 17. e4 $146 {[%emt 0:04:45] White is more active.} ({Predecessor:} 17. O-O Nf6 18. Rfe1 Nc8 19. Ne5 Bd6 20. e4 fxe4 21. Nxe4 Bxe5 22. dxe5 Nxe4 23. Bxe4 Bxe4 24. Rxe4 h5 25. Bh6 Qe7 26. Re3 {1-0 (26) Keymer,V (2630)-Alekseenko,K (2710) Riga 2021}) 17... fxe4 {[%emt 0:01:09]} 18. Bxe4 {[%emt 0:02:29]} Bxe4 {[%emt 0:04:15]} 19. Nxe4 {[%emt 0:00:06]} Nf5 {[%emt 0:01:23]} 20. O-O {[%emt 0:00:35]} Nb6 {[%emt 0:01:09]} 21. Rfe1 {[%emt 0:02:32]} Nc4 {[%emt 0:01:26]} 22. Bc1 $1 {[%emt 0:00:44]} a5 {[%emt 0:04:28]} 23. Nc5 {[%emt 0:04:26]} Qd5 {[%emt 0:00:12]} 24. Re2 {[%emt 0:04:24]} axb4 {[%emt 0:02:21]} 25. axb4 {[%emt 0:00:04]} Ra1 {[%emt 0:00:28]} 26. Nb3 {[%emt 0:04:13]} Ra4 {[%emt 0:01:19]} 27. Nc5 {[%emt 0:00:23]} Ra1 {[%emt 0:01:13]} ({Don't take} 27... Rxb4 28. Na6 Bd6 29. Nxb4 Bxb4 30. Bf4 $14) 28. Nb3 {[%emt 0:01:38]} Ra4 {[%emt 0:00:06]} 29. Nc5 {[%emt 0:01:08] Weighted Error Value: White=0.14 (very precise) /Black=0.08 (flawless)} 1/2-1/2

[Event "37th ECCC 2022"]
[Site "Mayrhofen"]
[Date "2022.10.04"]
[Round "2.6"]
[White "Csonka, Attila Istvan"]
[Black "Lupulescu, Constantin"]
[Result "0-1"]
[ECO "B56"]
[WhiteElo "2314"]
[BlackElo "2603"]
[Annotator "TA"]
[PlyCount "94"]
[EventDate "2022.10.03"]
[EventType "team-tourn"]
[EventCountry "AUT"]
[SourceTitle "playchess.com"]
[Source "ChessBase"]
[SourceQuality "1"]
[TimeControl "40/5400+30:1800+30"]

{[%evp 12,94,15,13,18,18,34,9,41,10,7,12,4,0,-7,-4,20,15,22,26,31,8,6,14,26,18,24,22,14,20,11,19,68,73,72,35,36,24,18,0,0,0,0,0,0,7,3,0,0,0,0,-8,-4,-8,-8,-7,-10,-235,-200,-425,-398,-443,-8,-8,0,-416,-455,-455,-383,-436,-421,-396,-351,-789,-764,-1131,-1289,-1845,-1457,-2233,-2529,-5214,-5214,-2216,-1464]} 1. e4 {[%emt 0:00:04]} c5 {[%emt 0:00:03]} 2. Nf3 {[%emt 0:00:05]} Nc6 {[%emt 0:00:02]} 3. d4 {[%emt 0:00:08]} cxd4 {[%emt 0:00:04]} 4. Nxd4 {[%emt 0:00:06]} Nf6 {[%emt 0:00:03]} 5. Nc3 {[%emt 0:00:09]} d6 {[%emt 0:00:04]} 6. g3 {[%emt 0:00:56]} g6 {[%emt 0:03:26]} 7. Bg2 $1 {[%emt 0:00:41] 7.Bg2 scores better than 7.Nde2.} Bg4 {[%emt 0:03:47] B70: Sicilian Dragon: 6 g3 and 6 Be2 (without a later Be3).} 8. Nxc6 {[%emt 0:05:22]} bxc6 {[%emt 0:00:31]} 9. Qd3 {[%emt 0:00:10][%cal Oe4e5]} Qc8 {[%emt 0:07:29] The position is equal.} 10. e5 {[%emt 0:11:28]} dxe5 {[%emt 0:05:27]} 11. Qc4 {[%emt 0:00:52]} Bd7 {[%emt 0:05:54] [#]} 12. b3 $146 {[%emt 0:06:33]} ({Predecessor:} 12. O-O Bg7 13. Re1 O-O 14. Rxe5 Be6 15. Qxc6 Qxc6 16. Bxc6 Rac8 17. Bg2 Ng4 18. Re2 Bxc3 19. bxc3 Rxc3 20. Bb2 Rc4 21. Rd1 Nf6 22. Red2 Bf5 23. Bd4 {½-½ (23) De la Riva Aguado,J (2245)-Colls Gelaberto,E (2147) Catalunya 2014}) 12... Bg7 {[%emt 0:04:56]} 13. Ba3 {[%emt 0:02:21]} O-O {[%emt 0:06:58]} (13... Qc7 $5 {[%cal Ra8c8]}) 14. Bxe7 {[%emt 0:08:18]} Re8 {[%emt 0:09:48]} 15. Bxf6 {[%emt 0:02:05]} Bxf6 {[%emt 0:00:04]} 16. Ne4 {[%emt 0:03:18]} Be7 {[%emt 0:00:42]} 17. Nc5 $36 {[%emt 0:01:23][%mdl 2048] White fights for an advantage.} Bxc5 {[%emt 0:08:10]} 18. Qxc5 {[%emt 0:00:16]} Qa6 $1 {[%emt 0:00:18]} 19. O-O-O {[%emt 0:05:01]} Bg4 {[%emt 0:00:44]} 20. f3 $1 {[%emt 0:05:55]} ({Avoid the trap} 20. Bxc6 $2 Rac8 21. Rd6 Qxa2 $19) 20... Bf5 {[%emt 0:03:01]} 21. a4 {[%emt 0:03:17]} Rad8 {[%emt 0:05:09]} (21... Qb6 $1 $11 22. Qxb6 axb6) 22. Rxd8 $14 {[%emt 0:04:23]} Rxd8 {[%emt 0:00:05]} 23. Rd1 {[%emt 0:02:56]} (23. Re1 $5 {[%cal Re1e5]}) 23... Rd5 {[%emt 0:01:16]} 24. Rxd5 {[%emt 0:04:59]} (24. Qe3 $5 {[%cal Rd1d5]}) 24... cxd5 {[%emt 0:00:04]} 25. Qxd5 {[%emt 0:00:17][%mdl 4096] Endgame KQB-KQB} Qb6 $1 {[%emt 0:00:19]} ({Much less strong is} 25... Qe2 26. Qd2 Qa6 27. g4 $16) 26. Qd1 {[%emt 0:09:04] Against Qg1} Qf2 {[%emt 0:03:00]} 27. g4 {[%emt 0:06:18]} Bxg4 {[%emt 0:06:23]} 28. fxg4 {[%emt 0:00:26]} Qxg2 $11 {[%emt 0:00:05] KQ-KQ} 29. h4 {[%emt 0:01:00]} h6 {[%emt 0:01:58] Prevents g5.} 30. Qd8+ {[%emt 0:02:30]} Kg7 {[%emt 0:01:16]} 31. g5 {[%emt 0:00:26]} Qh1+ {[%emt 0:04:15]} 32. Kb2 {[%emt 0:01:57]} Qxh4 {[%emt 0:01:57]} 33. Qf6+ {[%emt 0:01:01]} Kg8 {[%emt 0:00:10]} 34. Qd8+ {[%emt 0:00:12]} (34. Qxe5 $11 {and White has nothing to worry.} hxg5 35. Qb8+ Kg7 36. Qxa7) 34... Kh7 $19 {[%emt 0:01:08]} 35. Qf8 $2 {[%emt 0:00:22]} (35. Qd5 {only move.} Qf4 36. gxh6) 35... Qd4+ {[%emt 0:02:35]} 36. Kb1 {[%emt 0:01:59]} Qg1+ $2 {[%emt 0:00:45]} ({Black should play} 36... hxg5 $19 {And now ...Qf4 would win.} 37. Qxf7+ Kh6) 37. Kb2 $1 $11 {[%emt 0:00:11]} Qd4+ $2 {[%emt 0:00:17][%mdl 8192]} (37... Qf2 $11 38. Qxh6+ Kg8) 38. Kb1 $1 $19 {[%emt 0:00:05]} hxg5 {[%emt 0:03:08]} 39. Qxf7+ {[%emt 0:00:26]} Kh6 {[%emt 0:00:07] [#] ...g4 is the strong threat.} 40. Qf8+ {[%emt 0:05:14]} Kh5 {[%emt 0:00:12]} 41. Qh8+ {[%emt 0:30:15]} Kg4 {[%emt 0:30:06] Threatens to win with ...Kg3.} 42. Qg7 $2 {[%emt 0:00:18]} (42. Qh1 Qe3 43. Qg2+ Kf4 44. Qh2+ Kf5 45. Qh6) 42... Kf3 {[%emt 0:02:05] Strongly threatening ...g4. Black is clearly winning.} 43. Qxg6 {[%emt 0:05:17]} g4 {[%emt 0:00:24][%cal Bg5g4,Bg4g3][%mdl 32]} 44. Qf7+ {[%emt 0:01:34]} Kg2 {[%emt 0:02:24] [#] Hoping for ...g3.} 45. Qb7+ {[%emt 0:01:49]} e4 {[%emt 0:01:29] aiming for ...Qd1+.} 46. b4 {[%emt 0:00:42]} g3 {[%emt 0:02:20]} 47. a5 {[%emt 0:00:56]} Kf1 {[%emt 0:01:56] Weighted Error Value: White=0.59/Black=0.18 (very precise)} 0-1

[Event "37th ECCC 2022"]
[Site "Mayrhofen"]
[Date "2022.10.04"]
[Round "2.7"]
[White "Pijpers, Arthur"]
[Black "Harikrishna, Pentala"]
[Result "1/2-1/2"]
[ECO "C95"]
[WhiteElo "2455"]
[BlackElo "2717"]
[Annotator "TA"]
[PlyCount "72"]
[EventDate "2022.10.03"]
[EventType "team-tourn"]
[EventCountry "AUT"]
[SourceTitle "playchess.com"]
[Source "ChessBase"]
[SourceQuality "1"]
[TimeControl "40/5400+30:1800+30"]

{[%evp 22,72,15,10,20,0,-4,8,10,7,20,20,20,19,29,27,19,19,9,17,19,8,14,14,15,30,56,0,82,84,63,21,21,23,22,0,0,0,0,0,0,0,0,0,0,0,0,0,0,0,0,0,0]} 1. e4 {[%emt 0:00:03]} e5 {[%emt 0:00:07]} 2. Nf3 {[%emt 0:00:04]} Nc6 {[%emt 0:00:07]} 3. Bb5 {[%emt 0:00:03]} a6 {[%emt 0:00:09]} 4. Ba4 {[%emt 0:00:03]} Nf6 {[%emt 0:00:08]} 5. O-O {[%emt 0:00:04]} Be7 {[%emt 0:00:16]} 6. Re1 {[%emt 0:00:04]} b5 {[%emt 0:00:08]} 7. Bb3 {[%emt 0:00:03]} d6 {[%emt 0:00:12]} 8. c3 {[%emt 0:00:05][%cal Bc2c3,Bc3c4][%mdl 32]} O-O {[%emt 0:00:08]} 9. h3 {[%emt 0:00:03]} Nb8 {[%emt 0:00:22]} 10. d4 {[%emt 0:00:06]} Nbd7 {[%emt 0:00:06]} 11. c4 {[%emt 0:00:17]} c6 {[%emt 0:03:35][%cal Bc7c6,Bc6c5][%mdl 32]} 12. Nc3 {[%emt 0:00:06][%cal Bb1c3,Bc3e2,Be2g3][%mdl 32]} b4 {[%emt 0:00:57] C95: Closed Ruy Lopez: Breyer Variation with 10 d4.} 13. Ne2 $1 {[%emt 0:00:05][%mdl 4] is now more promising than 13.Na4.} Nxe4 {[%emt 0:05:07]} 14. Qc2 {[%emt 0:00:25]} Nef6 {[%emt 0:00:14]} 15. Ng3 {[%emt 0:00:39] Inhibits e4.} (15. c5 {feels hotter.} e4 16. cxd6 Bxd6 17. Ng5) 15... c5 $1 {[%emt 0:00:07]} 16. dxe5 {[%emt 0:00:07]} Nxe5 {[%emt 0:00:06]} 17. Nxe5 {[%emt 0:00:07]} dxe5 {[%emt 0:00:03]} 18. Rxe5 {[%emt 0:00:07]} Bd6 {[%emt 0:00:03]} 19. Re2 {[%emt 0:00:06]} Qc7 {[%emt 0:00:04]} 20. Bg5 {[%emt 0:07:41]} Bxg3 {[%emt 0:01:00]} 21. fxg3 {[%emt 0:00:05]} Qxg3 {[%emt 0:00:07]} 22. Bxf6 {[%emt 0:35:13]} gxf6 {[%emt 0:00:10]} 23. Rf1 {[%emt 0:00:03] [#]} Qg5 $146 {[%emt 0:04:56]} ({Predecessor:} 23... Qg6 24. Re3 Qxc2 25. Bxc2 Be6 26. Rg3+ Kh8 27. Bxh7 {1-0 (27) Oparin,G (2654)-Amin,B (2699) Douglas 2019}) 24. Qe4 {[%emt 0:09:23]} (24. Qd3 $14) 24... Be6 {[%emt 0:07:28]} (24... Bxh3 $1 $11 {keeps the balance.} 25. Bc2 Qg7) 25. Bc2 $16 {[%emt 0:06:37][%csl Gc2][%cal Re4h7] [#] White is more active.} f5 {[%emt 0:30:21]} 26. Qf4 {[%emt 0:19:08]} Qxf4 {[%emt 0:05:43]} 27. Rxf4 {[%emt 0:00:01]} Rfe8 {[%emt 0:07:03]} 28. Bxf5 {[%emt 0:00:34] The position is equal.} Bxf5 {[%emt 0:00:24]} 29. Rxe8+ {[%emt 0:00:03]} Rxe8 {[%emt 0:00:15]} 30. Rxf5 $11 {[%emt 0:00:02][%mdl 4096] Endgame KR-KR} Re1+ {[%emt 0:02:25]} 31. Kh2 {[%emt 0:02:34]} Ra1 {[%emt 0:01:41]} 32. a3 {[%emt 0:01:33]} ({Of course not} 32. Rxc5 Rxa2 33. Rc6 a5 $15) 32... bxa3 {[%emt 0:01:04]} 33. bxa3 {[%emt 0:00:06]} Rxa3 {[%emt 0:00:20]} 34. Rxc5 {[%emt 0:00:07]} Kg7 {[%emt 0:09:59]} 35. Rc6 {[%emt 0:01:29]} f5 {[%emt 0:03:45]} 36. c5 {[%emt 0:03:31]} Rc3 {[%emt 0:03:47] Weighted Error Value: White=0.09 (flawless) /Black=0.11 (very precise)} 1/2-1/2